bitfinex/quotes_ETHUSD_20250725
["timestamp","ask_amount","ask_price","bid_price","bid_amount"]
[1753420750481,1.0497,3634.3,3633.8,0.1376]
[1753420750664,1.704,3634.2,3633.9,4.825]
[1753420750842,0.9121,3634.1,3633.9,4.825]
[1753420751044,1.67141826,3634.0,3633.7,0.1376]
[1753420751240,1.67141826,3634.0,3633.8,4.824]
[1753420751446,4.45843183,3633.9,3633.8,4.824]
[1753420751654,3.0,3633.8,3633.2,0.1376]
[1753420751853,0.54633183,3633.9,3633.6,2.88963938]
[1753420752053,0.484,3633.9,3633.7,4.824]
[1753420752253,0.1376,3634.1,3633.8,4.823]
[1753420752458,0.002,3634.4,3633.9,2.75186438]
[1753420752685,0.002,3634.4,3634.3,2.75156151]
[1753420752883,0.002,3634.4,3634.3,7.57456151]
[1753420753045,0.002,3634.4,3634.3,7.71216151]
[1753420753242,0.002,3634.4,3634.3,8.16986151]
[1753420753441,0.002,3634.4,3634.3,9.25016335]
[1753420753688,0.002,3634.4,3634.3,10.02886335]
[1753420753855,0.002,3634.4,3634.3,10.02786335]
[1753420756221,0.002,3634.5,3634.4,2.7514858]
[1753420756366,0.002,3634.5,3634.4,3.71730065]
[1753420756575,0.002,3634.5,3634.4,4.33485809]
[1753420756774,0.002,3634.5,3634.4,9.58404324]
[1753420757313,0.002,3634.5,3634.4,10.07684324]
[1753420758610,0.002,3634.5,3634.4,10.28200959]
[1753420759316,1e-08,3634.9,3634.8,2.751183]
[1753420759482,1e-08,3634.9,3634.8,8.25502873]
[1753420759686,1e-08,3634.9,3634.8,4.37842873]
[1753420759922,1e-08,3634.9,3634.8,9.19342873]
[1753420760216,1e-08,3634.9,3634.8,10.52532873]
[1753420761502,1e-08,3634.9,3634.8,10.52432873]
[1753420761701,1e-08,3634.9,3634.8,9.97432873]
[1753420762753,1e-08,3634.9,3634.8,5.16032873]
[1753420762945,0.1376,3636.5,3634.8,5.16032873]
[1753420762946,0.04,3636.9,3636.8,2.74967003]
[1753420763128,0.04,3636.9,3636.8,8.35567003]
[1753420763504,0.04,3636.9,3636.8,8.80227003]
[1753420763912,0.04,3636.9,3636.8,2.74967003]
[1753420764134,0.04,3636.9,3636.8,9.25597202]
[1753420764556,0.04,3636.9,3634.2,0.8189]
[1753420764557,0.002,3635.7,3634.2,0.8189]
[1753420764862,0.4628,3635.6,3634.3,4.81]
[1753420765063,0.4628,3635.6,3634.4,4.81]
[1753420765224,0.002,3635.7,3634.5,0.8189]
[1753420765425,0.002,3635.7,3635.1,2.75094058]
[1753420765636,0.002,3635.7,3635.3,2.75076997]
[1753420765956,0.002,3635.7,3635.4,7.55971429]
[1753420766160,0.002,3635.7,3635.5,4.809]
[1753420766333,0.002,3635.7,3635.5,7.55959375]
[1753420766855,0.002,3635.7,3635.6,2.75057762]
[1753420767067,0.002,3635.7,3635.5,7.55964807]
[1753420767361,0.002,3635.7,3635.6,2.75057762]
[1753420767567,0.002,3635.7,3635.5,7.55963878]
[1753420768058,0.002,3635.7,3635.6,2.75057762]
[1753420769725,0.8243,3639.7,3636.0,3.6722]
[1753420769865,0.9083,3639.3,3638.8,2.74815873]
[1753420770064,0.9083,3639.3,3638.8,7.70864031]
[1753420770261,0.9083,3639.3,3638.8,7.68115873]
[1753420770498,0.13047314,3638.9,3638.8,7.68115873]
[1753420770701,0.04,3639.9,3639.8,2.7474037]
[1753420771000,0.04,3639.9,3639.8,4.932]
[1753420771185,0.9483,3639.9,3639.8,4.932]
[1753420771972,0.9483,3639.9,3635.9,0.825193]
[1753420771973,0.9483,3639.9,3638.1,0.9394]
[1753420772169,0.9083,3639.8,3638.5,2.74837449]
[1753420772373,0.9083,3639.8,3638.7,2.74817169]
[1753420772573,0.9083,3639.8,3638.6,7.67529785]
[1753420772768,0.7535,3639.6,3638.7,4.926]
[1753420773003,0.7535,3639.6,3638.2,0.96393139]
[1753420773004,3.50107846,3639.6,3639.3,0.1376]
[1753420773210,0.1376,3639.3,3638.8,0.1376]
[1753420773405,3.0,3639.0,3638.8,0.1376]
[1753420773594,5.74808321,3638.9,3638.8,0.1376]
[1753420773785,7.80598969,3638.9,3638.8,0.1376]
[1753420774107,7.80598969,3638.9,3637.1,0.04]
[1753420774108,3.0,3638.8,3638.2,0.1376]
[1753420774274,5.74846086,3638.4,3638.3,4.918]
[1753420774470,2.7485364,3638.3,3638.2,0.1376]
[1753420774709,2.74882786,3638.0,3637.9,0.1376]
[1753420774912,3.0,3638.0,3637.9,5.0586]
[1753420775078,7.43746305,3638.0,3637.2,2.7492998]
[1753420775408,0.94052973,3638.3,3637.9,0.1376]
[1753420775409,5.74869744,3638.1,3637.9,0.1376]
[1753420775709,6.65706305,3638.0,3637.9,0.1376]
[1753420775905,6.65706305,3638.0,3637.9,5.0576]
[1753420776078,6.65706305,3638.0,3637.9,0.1376]
[1753420776286,6.65706305,3638.0,3637.9,5.0536]
[1753420776687,6.65706305,3638.0,3637.1,2.78943212]
[1753420776688,7.59763113,3638.0,3637.1,0.04]
[1753420776876,7.59763113,3638.0,3637.6,0.1376]
[1753420777075,5.7490777,3637.6,3637.1,0.04]
[1753420777280,0.7585,3637.6,3637.2,0.1376]
[1753420777596,3.0,3637.3,3637.1,0.1776]
[1753420777796,3.65766764,3637.2,3637.1,0.1776]
[1753420777999,3.0,3637.2,3637.1,0.04]
[1753420778680,3.4628,3637.2,3637.1,0.04]
[1753420778881,3.9083,3637.2,3637.1,0.04]
[1753420779074,3.9083,3637.2,3637.1,4.941]
[1753420779277,3.4628,3637.2,3637.1,4.941]
[1753420780523,0.4628,3640.6,3637.4,7.30339338]
[1753420780699,0.1376,3640.8,3637.2,1.22316]
[1753420780700,0.8193,3639.3,3638.8,0.1376]
[1753420780900,0.9083,3639.2,3638.9,5.112]
[1753420781074,0.9083,3639.1,3638.6,5.155]
[1753420781277,0.9083,3639.0,3638.7,0.1376]
[1753420781703,0.9083,3639.0,3638.6,5.156]
[1753420781704,0.8193,3639.3,3639.1,2.74787509]
[1753420782013,0.002,3639.4,3639.2,5.156]
[1753420782215,0.46307397,3639.4,3639.2,5.156]
[1753420782526,3.65608116,3639.3,3639.1,5.2866]
[1753420782681,2.74778116,3639.3,3639.1,5.149]
[1753420782877,0.46307397,3639.4,3637.4,3.50246896]
[1753420782878,0.7874,3639.0,3637.4,3.50246896]
[1753420783116,0.7874,3639.0,3638.3,0.1376]
[1753420783117,0.9083,3638.9,3638.3,0.1376]
[1753420783413,2.74831682,3638.6,3638.3,5.2826]
[1753420783614,3.9083,3638.5,3638.3,0.1376]
[1753420783815,0.9083,3638.5,3638.4,5.143]
[1753420784233,0.9083,3638.5,3638.3,0.1376]
[1753420784447,0.9083,3638.5,3638.4,5.139]
[1753420784448,0.4455,3638.5,3638.4,5.139]
[1753420784942,2.88577829,3638.8,3638.4,5.139]
[1753420784943,3.96628616,3639.5,3638.4,5.94152757]
[1753420785148,0.4628,3639.3,3638.4,5.139]
[1753420785459,0.7731,3639.5,3639.0,2.74799805]
[1753420785663,0.7731,3639.5,3639.1,5.139]
[1753420785818,1.2873,3639.9,3639.3,2.74778116]
[1753420786345,0.04,3639.9,3639.3,2.74778116]
[1753420786643,0.04,3639.9,3639.3,4.45868116]
[1753420786837,0.04,3639.9,3639.3,2.74778116]
[1753420787087,0.39152681,3641.3,3640.8,2.74664908]
[1753420787357,0.7074,3641.7,3640.3,0.4566]
[1753420787502,0.9049,3641.2,3640.6,2.74676573]
[1753420787704,0.9049,3641.2,3640.3,5.222]
[1753420787928,0.4579,3641.2,3640.2,0.02747101]
[1753420788128,0.39049,3641.1,3640.3,5.222]
[1753420788457,0.8165,3641.6,3641.1,2.74635319]
[1753420788604,0.2495,3641.7,3641.1,5.219]
[1753420788803,0.2495,3641.7,3641.3,2.74627193]
[1753420789038,0.2495,3641.7,3641.4,5.228]
[1753420789542,0.9049,3641.6,3641.4,5.228]
[1753420790340,0.2495,3641.7,3641.4,5.228]
[1753420790641,0.2495,3641.7,3641.6,3.57904569]
[1753420790818,0.2495,3641.7,3640.9,0.20910044]
[1753420791016,4.7254,3641.6,3640.9,0.20910044]
[1753420791218,1e-08,3641.7,3641.6,2.74604569]
[1753420791417,1e-08,3641.7,3641.6,3.68244569]
[1753420791644,1e-08,3641.7,3641.6,9.29864569]
[1753420791957,1e-08,3641.9,3641.8,2.74589488]
[1753420792824,1e-08,3641.9,3641.6,5.542]
[1753420793017,1e-08,3641.9,3641.8,2.74589488]
[1753420793569,0.832,3644.8,3642.8,2.7451411]
[1753420793724,0.832,3644.8,3642.0,2.74574409]
[1753420793725,0.832,3643.7,3641.9,1.6942]
[1753420793920,3.0,3643.3,3642.1,8.29166146]
[1753420794161,0.832,3643.7,3641.9,0.7578]
[1753420794162,0.04976023,3642.8,3641.9,0.7578]
[1753420794560,0.04976023,3642.8,3641.4,0.9364]
[1753420794561,0.7708,3642.7,3641.4,0.4566]
[1753420794854,3.0,3642.5,3642.3,0.1376]
[1753420795064,3.65040037,3642.4,3642.3,0.1376]
[1753420795585,0.9049,3642.4,3642.3,0.1376]
[1753420795945,0.7708,3642.7,3642.3,0.1376]
[1753420796167,0.4579,3642.6,3642.3,0.1376]
[1753420796484,0.4579,3642.6,3641.5,0.9364]
[1753420796485,0.4579,3642.6,3642.5,0.1376]
[1753420796783,6.65019182,3642.6,3641.8,2.7458897]
[1753420796946,3.9049,3642.6,3642.4,0.1376]
[1753420797147,0.4579,3642.5,3642.4,0.1376]
[1753420797659,4.16559919,3642.5,3642.4,0.1376]
[1753420797886,0.9049,3642.5,3642.4,0.1376]
[1753420798064,3.9049,3642.5,3642.4,0.1376]
[1753420798261,0.9049,3642.5,3642.4,0.1376]
[1753420799179,6.65026719,3642.5,3642.4,0.1376]
[1753420799386,6.65026719,3642.5,3641.6,2.74599079]
[1753420799387,3.0,3642.3,3641.6,2.74599079]
[1753420799583,3.0,3642.3,3641.7,2.74594683]
[1753420799786,2.74553638,3642.3,3642.2,0.1376]
[1753420799997,0.4579,3642.3,3642.2,0.1376]
[1753420800219,0.7719,3642.1,3639.2,5.10139694]
[1753420800381,0.7719,3641.1,3639.8,0.1376]
[1753420800582,3.55,3640.9,3639.8,0.1376]
[1753420800920,3.0,3640.3,3640.1,0.1376]
[1753420801123,3.0,3640.2,3639.1,0.04]
[1753420801433,3.447,3640.9,3639.1,0.04]
[1753420801434,0.4579,3642.0,3640.0,7.30339338]
[1753420801576,0.48536213,3642.0,3640.1,8.11213934]
[1753420801775,0.48536213,3642.0,3641.3,0.1376]
[1753420801776,0.7744,3641.7,3641.3,0.1376]
[1753420802022,3.0,3641.4,3641.3,0.1376]
[1753420802226,1.2323,3641.7,3641.3,0.1376]
[1753420802429,3.70206057,3641.7,3641.3,0.1376]
[1753420802624,3.65097439,3641.6,3640.6,2.7467326]
[1753420802775,0.1376,3641.5,3641.0,0.1376]
[1753420802979,0.04,3641.9,3641.5,0.1376]
[1753420803312,0.04,3641.9,3641.7,0.1376]
[1753420804619,0.9049,3641.8,3641.1,2.7463693]
[1753420804820,0.9049,3641.8,3641.5,0.1376]
[1753420805023,0.447,3641.8,3641.5,0.1376]
[1753420805234,0.9049,3641.8,3641.5,0.1376]
[1753420805510,0.4579,3641.7,3641.5,0.1376]
[1753420805675,0.9049,3641.7,3640.8,2.74664573]
[1753420805876,0.4579,3641.7,3641.4,0.1376]
[1753420806109,0.4579,3641.6,3641.4,0.1376]
[1753420806310,3.4579,3641.6,3641.4,0.1376]
[1753420806519,0.04,3641.9,3641.4,0.1376]
[1753420806728,0.4579,3641.8,3641.4,0.1376]
[1753420806935,3.0,3641.5,3640.1,1.51713934]
[1753420807133,0.02746213,3641.4,3641.3,0.1376]
[1753420807322,0.4579,3641.4,3641.3,0.1376]
[1753420808053,0.4579,3641.4,3640.2,0.19737393]
[1753420808054,3.0,3641.3,3641.1,0.1376]
[1753420808199,2.74621368,3641.4,3641.1,0.1376]
[1753420808400,0.5955,3641.6,3641.1,0.1376]
[1753420808658,0.9049,3641.5,3641.1,0.1376]
[1753420808939,3.0,3641.2,3641.1,0.1376]
[1753420809154,3.9049,3641.2,3641.1,0.1376]
[1753420809353,3.65124735,3641.2,3641.1,0.1376]
[1753420809653,2.74649821,3641.0,3640.5,0.1376]
[1753420809852,2.74680566,3640.6,3640.3,0.1376]
[1753420810168,3.0,3640.3,3639.8,0.001]
[1753420810297,1e-08,3642.9,3642.8,3.5717411]
[1753420810664,1e-08,3642.9,3642.8,0.1376]
[1753420810936,1e-08,3642.9,3642.3,5.767]
[1753420811134,1e-08,3642.9,3641.6,7.694]
[1753420811135,1.6835,3642.8,3641.3,0.7786]
[1753420811448,1.2365,3642.8,3642.3,2.74551215]
[1753420811657,0.7786,3642.8,3642.2,2.74557841]
[1753420811940,1e-08,3642.9,3642.1,2.74563064]
[1753420812139,2.74508099,3642.9,3642.1,2.74563064]
[1753420812340,5.74515426,3642.8,3642.0,2.74573102]
[1753420812640,5.74515426,3642.8,3641.3,9.49845705]
[1753420812641,0.90490001,3642.9,3641.3,1.2584]
[1753420812808,2.74538267,3642.5,3641.7,2.74596857]
[1753420813135,2.74537165,3642.5,3641.5,5.768]
[1753420813339,0.90490001,3642.9,3641.4,5.757]
[1753420813340,2.74574779,3642.0,3641.4,5.757]
[1753420813540,3.0,3642.4,3641.4,8.50318271]
[1753420813842,0.4579,3642.8,3641.4,5.757]
[1753420813999,2.74530294,3642.6,3641.7,2.74590201]
[1753420814225,3.0,3642.5,3641.7,2.74590201]
[1753420814729,3.25563497,3642.5,3641.8,2.74588755]
[1753420814954,0.25563497,3642.4,3641.9,2.74579934]
[1753420815153,0.25563497,3642.3,3641.9,2.74579934]
[1753420815348,0.25563497,3642.2,3641.9,2.74579934]
[1753420815624,0.25563497,3642.1,3641.6,2.74603356]
[1753420815824,1e-08,3642.9,3641.8,2.74589488]
[1753420816026,1e-08,3642.9,3641.6,0.97382336]
[1753420816027,1e-08,3642.9,3642.0,0.8307]
[1753420816258,1e-08,3642.9,3642.2,0.55]
[1753420816459,1e-08,3642.9,3642.8,2.7451411]
[1753420816758,1e-08,3642.9,3642.6,2.74522776]
[1753420816964,1e-08,3642.9,3642.1,0.9364]
[1753420817260,1e-08,3642.9,3642.5,2.7453588]
[1753420817445,1e-08,3642.9,3642.5,2.7453252]
[1753420817622,1e-08,3642.9,3642.2,5.736]
[1753420817623,1e-08,3642.9,3642.6,2.74528597]
[1753420817827,1e-08,3642.9,3642.8,2.7451411]
[1753420818058,1e-08,3642.9,3642.6,2.74524418]
[1753420818259,1e-08,3642.9,3642.6,8.47128588]
[1753420818427,1e-08,3642.9,3642.7,2.74521646]
[1753420818760,1e-08,3642.9,3642.8,2.7451411]
[1753420819839,1e-08,3642.9,3642.8,3.1896411]
[1753420820158,1e-08,3642.9,3642.8,8.4481411]
[1753420820762,1e-08,3642.9,3642.8,8.5857411]
[1753420820966,1e-08,3642.9,3642.8,9.0302411]
[1753420821467,0.00200001,3642.9,3642.8,9.4901411]
[1753420821761,0.00200001,3642.9,3642.8,10.2633411]
[1753420822666,0.00200001,3642.9,3642.8,10.2453411]
[1753420823329,1e-08,3642.9,3642.8,10.2453411]
[1753420823534,1e-08,3642.9,3642.8,12.09440192]
[1753420824146,1e-08,3642.9,3642.8,6.40940192]
[1753420824465,1e-08,3642.9,3642.8,12.06840192]
[1753420824671,1e-08,3642.9,3642.8,6.40940192]
[1753420824962,1e-08,3642.9,3642.8,10.2123411]
[1753420825672,1e-08,3642.9,3642.8,9.3029411]
[1753420825966,1e-08,3642.9,3642.8,9.2999411]
[1753420826267,1e-08,3642.9,3642.8,9.2929411]
[1753420826741,1e-08,3642.9,3642.8,2.8827411]
[1753420827063,1e-08,3642.9,3642.8,8.5127411]
[1753420827266,1e-08,3642.9,3642.8,8.5087411]
[1753420827734,1e-08,3642.9,3642.8,0.1376]
[1753420827934,1e-08,3642.9,3642.8,8.5037411]
[1753420828366,1e-08,3642.9,3642.8,9.4081411]
[1753420828581,1e-08,3642.9,3642.8,10.62348298]
[1753420828867,1e-08,3642.9,3642.8,0.1376]
[1753420829175,1e-08,3642.9,3642.8,5.7456]
[1753420829670,1e-08,3642.9,3642.8,0.1376]
[1753420830154,0.88510001,3642.9,3642.8,0.1376]
[1753420830563,2.74529757,3642.6,3642.5,5.596]
[1753420830882,3.63039757,3642.6,3642.4,0.1376]
[1753420831034,6.55604256,3642.4,3642.3,0.1376]
[1753420831230,3.0,3642.0,3641.9,0.1376]
[1753420831738,0.826732,3644.4,3641.9,1.8446]
[1753420831739,0.7634,3643.2,3641.9,1.8446]
[1753420831949,0.7634,3643.2,3642.1,0.55]
[1753420832149,4.6485,3643.2,3642.8,0.1376]
[1753420832372,1.6485,3643.2,3642.8,0.1376]
[1753420832574,1.6485,3643.2,3642.8,2.8827411]
[1753420832739,0.7634,3643.2,3642.8,2.8827411]
[1753420833674,0.002,3643.7,3642.8,3.7871411]
[1753420833971,0.002,3643.7,3642.8,3.3272411]
[1753420834152,0.002,3643.7,3642.8,4.95378975]
[1753420836044,0.002,3643.7,3642.8,4.49388975]
[1753420836250,0.002,3643.7,3642.8,3.3272411]
[1753420836470,0.4589,3643.7,3642.8,8.4457411]
[1753420836646,0.002,3643.7,3642.8,9.3501411]
[1753420837054,0.002,3643.7,3642.8,8.4457411]
[1753420837249,3.002,3643.7,3642.8,2.8827411]
[1753420837471,0.002,3643.7,3642.8,8.4287411]
[1753420837951,3.002,3643.7,3642.8,8.4287411]
[1753420838155,3.002,3643.7,3642.8,8.4167411]
[1753420838555,5.88417293,3643.7,3642.8,8.4167411]
[1753420839175,0.4569,3643.5,3642.8,8.4167411]
[1753420839771,3.4569,3643.5,3642.8,8.4167411]
[1753420840378,0.7793,3643.3,3642.8,5.6616]
[1753420840582,1.2362,3643.5,3642.8,8.4067411]
[1753420840781,3.4282,3643.3,3642.8,0.1376]
[1753420841085,0.8851,3643.3,3642.8,8.3947411]
[1753420841290,0.1376,3643.6,3642.8,10.85574498]
[1753420841459,0.002,3643.7,3642.8,11.62254498]
[1753420843582,0.002,3643.7,3642.8,11.62354498]
[1753420843987,0.002,3643.7,3642.8,11.8333506]
[1753420844196,0.002,3643.7,3642.8,2.7461411]
[1753420844402,0.002,3643.7,3642.8,10.00079251]
[1753420844601,0.002,3643.7,3642.8,10.5233411]
[1753420846000,0.002,3643.7,3642.8,5.0253411]
[1753420846205,0.002,3643.7,3642.8,10.5183411]
[1753420846374,0.002,3643.7,3642.8,11.84470037]
[1753420846575,0.002,3643.7,3642.8,11.84170037]
[1753420846907,0.002,3643.7,3642.8,10.83180037]
[1753420847105,0.002,3643.7,3642.8,4.89730037]
[1753420847290,0.9376,3643.7,3642.8,9.07739251]
[1753420847601,0.9376,3643.7,3642.8,9.0499411]
[1753420847775,0.8264,3643.6,3642.8,2.7461411]
[1753420848099,0.4403,3643.4,3642.8,8.2201411]
[1753420849069,0.4953,3643.3,3642.8,2.7461411]
[1753420849265,0.8264,3643.6,3642.8,8.2081411]
[1753420849463,0.8264,3643.6,3642.8,9.30348037]
[1753420850786,0.8264,3643.6,3642.8,8.2081411]
[1753420851487,0.8264,3643.6,3642.8,2.8837411]
[1753420851661,0.8264,3643.6,3642.8,8.3197411]
[1753420853187,0.4953,3643.3,3642.8,8.3047411]
[1753420854268,0.8264,3643.6,3642.8,8.3047411]
[1753420855070,0.4403,3643.4,3642.8,2.8837411]
[1753420855276,0.4403,3643.4,3642.8,8.3017411]
[1753420856211,0.4953,3643.5,3642.8,0.1386]
[1753420856413,0.93560001,3642.9,3642.8,8.2797411]
[1753420856576,0.93560001,3642.9,3642.8,5.5346]
[1753420857122,0.93560001,3642.9,3642.8,0.1386]
[1753420857291,3.93560001,3642.9,3642.8,0.001]
[1753420857487,6.68066575,3642.9,3642.8,0.001]
[1753420857701,3.93560001,3642.9,3642.8,0.001]
[1753420858023,4.51076575,3642.9,3642.8,0.001]
[1753420858225,7.51076575,3642.9,3642.8,0.001]
[1753420859852,7.76746646,3642.9,3642.8,0.001]
[1753420860262,8.31746646,3642.9,3642.8,1e-08]
[1753420860556,6.5474687,3642.1,3642.0,0.001]
[1753420860962,7.4830687,3642.1,3642.0,0.001]
[1753420861261,7.4830687,3642.1,3642.0,1e-08]
[1753420861262,8.2898067,3642.1,3642.0,1e-08]
[1753420861553,13.79588141,3642.1,3642.0,1e-08]
[1753420861870,6.50379651,3641.4,3641.3,0.001]
[1753420862213,7.43939651,3641.4,3641.3,0.001]
[1753420862911,12.78339651,3641.4,3641.3,0.001]
[1753420863138,13.1622579,3641.4,3641.3,0.001]
[1753420863310,12.78339651,3641.4,3641.3,0.001]
[1753420864909,7.43939651,3641.4,3641.3,0.001]
[1753420865110,12.76239651,3641.4,3641.3,0.001]
[1753420865339,13.31239651,3641.4,3641.3,1e-08]
[1753420865611,7.11617193,3641.3,3641.2,1e-08]
[1753420865807,7.11624735,3641.2,3641.1,1e-08]
[1753420866035,8.05184735,3641.2,3641.1,1e-08]
[1753420866649,3.51519997,3640.6,3640.5,0.001]
[1753420866809,12.37319997,3640.6,3640.5,0.001]
[1753420867009,13.30879997,3640.6,3640.5,0.001]
[1753420867237,13.44639997,3640.6,3640.5,0.001]
[1753420867948,2.7471018,3640.2,3639.3,0.1376]
[1753420868113,6.6649018,3640.2,3639.3,0.1376]
[1753420868448,7.6005018,3640.2,3639.3,0.1376]
[1753420869937,12.8885018,3640.2,3639.1,0.04]
[1753420870928,5.74732822,3639.9,3639.1,0.04]
[1753420871113,3.0,3639.9,3639.4,2.88528131]
[1753420871319,3.0,3639.9,3639.8,3.3576037]
[1753420871517,3.0,3639.9,3639.8,0.1386]
[1753420871921,5.74732822,3639.9,3639.8,0.001]
[1753420872122,3.0,3639.9,3639.8,0.001]
[1753420872835,11.95492822,3639.9,3639.8,0.001]
[1753420873422,12.76652822,3639.9,3639.8,0.001]
[1753420873623,7.49452822,3639.9,3639.8,0.001]
[1753420873854,12.75952822,3639.9,3639.8,0.001]
[1753420874159,7.49452822,3639.9,3639.8,0.001]
[1753420874333,12.75252822,3639.9,3639.8,0.001]
[1753420876363,12.73552822,3639.9,3639.8,0.001]
[1753420877844,27.23552822,3639.9,3639.8,0.001]
[1753420878047,2.74770566,3639.4,3639.3,0.001]
[1753420878355,11.11430566,3639.4,3639.3,0.001]
[1753420878554,12.06520566,3639.4,3639.3,0.001]
[1753420878760,12.85430566,3639.4,3639.3,0.001]
[1753420879130,27.35430566,3639.4,3639.3,0.001]
[1753420879758,22.12530566,3639.4,3639.3,0.001]
[1753420879972,27.35030566,3639.4,3639.3,0.001]
[1753420880972,22.12530566,3639.4,3639.3,0.001]
[1753420881144,27.33630566,3639.4,3639.3,0.001]
[1753420881470,3.29785667,3639.2,3639.1,0.04]
[1753420881673,12.43095667,3639.2,3639.1,0.04]
[1753420882104,13.38185667,3639.2,3639.1,0.04]
[1753420882651,8.17685667,3639.2,3639.1,0.04]
[1753420883079,13.36985667,3639.2,3639.1,0.04]
[1753420885170,27.86985667,3639.2,3639.1,0.04]
[1753420885398,27.30085667,3639.2,3639.1,0.04]
[1753420886158,28.06177881,3639.2,3639.1,0.04]
[1753420887193,28.06177881,3639.2,3639.1,0.041]
[1753420887493,28.31742977,3639.2,3639.1,0.041]
[1753420887666,28.31742977,3639.2,3639.1,1e-08]
[1753420887876,28.31743682,3639.2,3639.1,1e-08]
[1753420888062,3.29815873,3638.8,3638.7,1e-08]
[1753420888261,21.78858446,3638.8,3638.7,1e-08]
[1753420888493,22.99514247,3638.8,3638.7,1e-08]
[1753420888859,13.41281674,3638.8,3638.7,1e-08]
[1753420890187,27.91281674,3638.8,3638.7,1e-08]
[1753420890421,37.49514247,3638.8,3638.7,1e-08]
[1753420890727,39.74121179,3638.8,3638.7,1e-08]
[1753420890885,39.7417374,3638.8,3638.7,1e-08]
[1753420891219,22.75834235,3638.8,3638.7,1e-08]
[1753420891419,27.89834235,3638.8,3638.7,1e-08]
[1753420892041,28.48847645,3638.8,3638.7,1e-08]
[1753420892199,30.14447645,3638.8,3638.7,1e-08]
[1753420893692,25.00447645,3638.8,3638.7,1e-08]
[1753420894029,3.29861195,3638.2,3638.1,1e-08]
[1753420894234,6.29883861,3637.9,3637.8,1e-08]
[1753420894399,11.66402223,3637.9,3637.8,1e-08]
[1753420894608,12.61492223,3637.9,3637.8,1e-08]
[1753420894809,12.61492223,3637.9,3637.2,0.001]
[1753420894810,6.54979205,3637.3,3637.2,0.001]
[1753420895350,11.65579205,3637.3,3637.2,0.001]
[1753420895639,12.12629205,3637.3,3637.2,0.001]
[1753420895821,12.60669205,3637.3,3637.2,0.001]
[1753420896138,11.65379205,3637.3,3637.2,0.001]
[1753420896437,6.54979205,3637.3,3637.2,0.001]
[1753420896641,10.84729205,3637.3,3637.2,0.001]
[1753420897345,11.31779205,3637.3,3637.2,0.001]
[1753420897538,11.79819205,3637.3,3637.2,0.001]
[1753420897704,6.00547806,3637.3,3637.2,0.001]
[1753420897903,11.10247806,3637.3,3637.2,0.001]
[1753420898242,11.24007806,3637.3,3637.2,0.001]
[1753420898740,20.64307806,3637.3,3637.2,0.001]
[1753420899043,21.45887806,3637.3,3637.2,0.001]
[1753420899217,21.93927806,3637.3,3637.2,0.001]
[1753420899420,2.75012375,3636.2,3636.1,0.04]
[1753420899638,8.074,3636.2,3636.1,0.04]
[1753420899826,15.7962,3637.3,3636.1,0.5283]
[1753420900029,2.74972998,3636.8,3636.1,0.5283]
[1753420900342,10.82781088,3636.7,3636.2,0.4545]
[1753420900576,3.0,3636.5,3636.2,0.4545]
[1753420900794,3.0,3636.3,3636.2,0.4883]
[1753420901075,5.75012375,3636.2,3636.1,0.04]
[1753420901272,10.82412375,3636.2,3636.1,0.04]
[1753420902264,8.074,3636.2,3636.1,0.04]
[1753420902764,8.074,3636.2,3636.1,0.4945]
[1753420903728,10.82412375,3636.2,3636.1,0.04]
[1753420904464,8.074,3636.2,3636.1,0.04]
[1753420904687,10.82412375,3636.2,3636.1,0.04]
[1753420905052,8.074,3636.2,3636.1,0.04]
[1753420905359,10.82412375,3636.2,3636.1,0.04]
[1753420905801,3.0,3636.2,3636.1,0.8516]
[1753420906099,8.04,3636.2,3636.1,1.7944]
[1753420906471,8.038,3636.2,3636.1,1.7944]
[1753420908686,8.038,3636.2,3636.1,0.4812]
[1753420908994,8.038,3636.2,3636.1,0.4822]
[1753420909193,5.038,3636.2,3636.1,0.9365]
[1753420909400,2.74959148,3637.0,3636.2,0.7515]
[1753420909566,5.018,3636.9,3636.4,2.74995937]
[1753420909762,5.018,3636.9,3636.8,0.1376]
[1753420909957,2.74899077,3637.7,3636.8,0.1376]
[1753420909958,2.74894067,3637.8,3637.1,2.74938119]
[1753420910304,5.018,3637.7,3637.2,0.4412]
[1753420910467,0.25604121,3637.6,3637.5,2.74914089]
[1753420910667,0.25604121,3637.6,3637.5,3.70754089]
[1753420911164,0.25604121,3637.6,3636.9,0.8208]
[1753420911165,3.25604121,3637.6,3636.9,0.8208]
[1753420911365,3.0,3637.4,3637.0,0.1376]
[1753420911555,3.25604121,3637.4,3637.0,1.0331]
[1753420911756,3.25604121,3637.4,3637.1,0.4412]
[1753420912181,3.25604121,3637.4,3637.2,0.8955]
[1753420912381,3.25604121,3637.4,3637.2,0.4412]
[1753420912577,3.25604121,3637.4,3637.0,0.1376]
[1753420912777,3.25604121,3637.4,3637.0,0.5788]
[1753420912953,6.00526521,3637.4,3637.0,0.5788]
[1753420913278,0.25604121,3637.3,3637.0,0.5788]
[1753420913467,3.25604121,3637.4,3637.0,0.5788]
[1753420913670,0.25604121,3637.4,3637.0,0.5788]
[1753420913896,3.0,3637.3,3637.0,0.5788]
[1753420914197,3.25604121,3637.3,3637.1,0.4412]
[1753420914561,3.25641597,3637.3,3637.1,0.4412]
[1753420916108,3.25641597,3637.3,3637.2,0.8955]
[1753420916257,5.14319997,3637.8,3637.4,2.74915685]
[1753420916467,3.0,3637.9,3637.5,0.8955]
[1753420916658,3.0,3638.0,3637.7,0.1376]
[1753420917056,3.2566111,3638.0,3637.7,0.1376]
[1753420917294,5.14151511,3638.1,3637.9,0.8044]